Cogmind - Beta 13 X1 @@@ ROGUE MODE // 2023.11.26 @ 21:58:39 Player: alice_fexa Result: Self-destructed Performance ------------- Evolutions (6) 3000 Regions Visited (16) 3200 Robots Destroyed (246) 1230 Value Destroyed (9524) 9524 Prototype IDs (36) 720 Alien Tech Used (0) 0 Bonus (2120) 2120 TOTAL SCORE: 19794 Bonus ------- High Alert Combat Kills 1178 Follower Combat Kills 337 Network Hubs Disabled 200 Aligned with FarCom 300 Met R17 at Cetus 500 Friendly Fire -395 Cogmind --------- Core Integrity 865/1150 Matter 212/300 Energy 246/266 System Corruption 1% Temperature Cool (92) Movement Hovering (163) Ox1 Location -4/Factory Parts ------- > --- POWER (2) -------- Antimatter-Angular Reactor > --- PROPULSION (5) --- Hovering Antigrav-VTOL Exoskeleton > --- UTILITY (8) ------ Armored Scrap Engine Improved Coolant Injector (fused) High-capacity Storage Unit Advanced Targeting Computer Centrium Medium Armor Plating Hacking Suite Long-range Tractor Beam > --- WEAPON (4) ------- Wave Gun KE Penetrator Energy Wave Construct/G Shotgun Kinetic Coil Construct/G > --- INVENTORY (20) --- Light Angular Momentum Engine Advanced Heat Sink Advanced Heat Sink Advanced Heat Sink Advanced Heat Sink Advanced Heat Sink Advanced Heat Sink Improved Coolant Injector Matter Compressor (105) Structural Scanner Enhanced Optical Array Graphene Brace Graphene Brace Advanced Shield Generator System Restoration Module Advanced System Restoration Module Field Lobotomy Kit (5) Peak State ------------ > --- POWER ------------ Quantum Reactor Antimatter-Angular Reactor > --- PROPULSION ------- Hovering Antigrav-VTOL Exoskeleton > --- UTILITY ---------- Armored Scrap Engine Improved Coolant Injector High-capacity Storage Unit Advanced Targeting Computer Centrium Medium Armor Plating Advanced Shield Generator Hacking Suite > --- WEAPON ----------- Wave Gun Enhanced Gauss Cannon Energy Wave Construct/G Shotgun Kinetic Coil Construct/G > --- INVENTORY -------- Light Angular Momentum Engine Advanced Heat Sink Advanced Heat Sink Advanced Heat Sink Advanced Heat Sink Advanced Heat Sink Advanced Heat Sink Improved Coolant Injector Matter Compressor Structural Scanner Centrium Medium Armor Plating Graphene Brace Graphene Brace System Restoration Module Advanced System Restoration Module Long-range Tractor Beam KE Penetrator Missile Launcher Field Lobotomy Kit [Rating: 118] Favorites ----------- Power Constructs Engine Light Angular Momentum Engine Power Core Light Nuclear Core Reactor Constructs Propulsion Light Treads Treads Light Treads Wheel Compact Wheel Hover Unit Constructs Utility High-capacity Storage Unit Device Armored Scrap Engine Storage High-capacity Storage Unit Processor Advanced Targeting Computer Hackware Hacking Suite Protection Hardened Medium Armor Plating Weapon Improved Assault Rifle Energy Gun Wave Gun Energy Cannon Disruptor Cannon Ballistic Gun Improved Assault Rifle Ballistic Cannon Enhanced Gauss Cannon Launcher Missile Launcher Build | -11 -10 -10 -9 -9 -9 -8 -8 -7 -7 -7 -5 -5 -5 -5 -5 -4 ------- Run | Jun Mat Min Mat Min Exi Min Mat Fac Sto Rec Fac Ext Cet Arc Hub Fac Slots Evolved 12 | . . . 2 . . . 2 2 . . 4 . . . . 2 Power 1 | . . . . . . . . . . . 1 . . . . . Propulsion 3 | . . . 1 . . . . 1 . . . . . . . 1 Utility 6 | . . . 1 . . . 1 1 . . 2 . . . . 1 Weapon 2 | . . . . . . . 1 . . . 1 . . . . . Parts Attached 216 | 6 14 5 13 4 2 12 22 11 9 5 48 13 16 2 4 30 Power 13 | 1 2 1 . . . 2 2 . 1 . 2 . 2 . . . Engine 5 | 1 1 . . . . 1 . . 1 . . . 1 . . . Core 7 | . 1 1 . . . 1 2 . . . 2 . . . . . Reactor 1 | . . . . . . . . . . . . . 1 . . . Propulsion 32 | 2 3 . 7 2 . 3 7 2 . 3 3 . . . . . Treads 19 | 1 1 . 5 1 . . 7 2 . 1 1 . . . . . Leg . | . . . . . . . . . . . . . . . . . Wheel 13 | 1 2 . 2 1 . 3 . . . 2 2 . . . . . Hover . | . . . . . . . . . . . . . . . . . Flight . | . . . . . . . . . . . . . . . . . Utility 106 | 1 3 2 2 . . 3 7 5 3 1 35 10 10 2 3 19 Device 65 | . . 1 1 . . 1 1 1 3 1 27 7 3 . 2 17 Storage 4 | 1 1 . . . . . 1 . . . . . . . 1 . Processor 1 | . . . . . . . . . . . . . 1 . . . Hackware 4 | . . . . . . . . 1 . . 2 . . . . 1 Protection 32 | . 2 1 1 . . 2 5 3 . . 6 3 6 2 . 1 Artifact . | . . . . . . . . . . . . . . . . . Weapon 65 | 2 6 2 4 2 2 4 6 4 5 1 8 3 4 . 1 11 Energy Gun 6 | 2 . . . . . . . . . . . . . . . 4 Energy Cannon 1 | . . . . . . . . . . . . . . . . 1 Ballistic Gun 31 | . 4 1 3 1 2 2 4 3 3 1 4 . . . 1 2 Ballistic Cannon 9 | . 1 . . . . . . . 2 . 3 1 1 . . 1 Launcher 18 | . 1 1 1 1 . 2 2 1 . . 1 2 3 . . 3 Special Weapon . | . . . . . . . . . . . . . . . . . Impact Weapon . | . . . . . . . . . . . . . . . . . Slashing Weapon . | . . . . . . . . . . . . . . . . . Piercing Weapon . | . . . . . . . . . . . . . . . . . Special Melee Weapon . | . . . . . . . . . . . . . . . . . Unidentified Prototypes 6 | . 1 1 . . . . . 1 2 . . . 1 . . . Parts Lost 33 | . 1 . 1 . . 2 . . . . 7 4 8 3 . 7 Power 8 | . 1 . . . . 2 . . . . 2 . 2 . . 1 Propulsion 1 | . . . 1 . . . . . . . . . . . . . Utility 16 | . . . . . . . . . . . 4 3 4 2 . 3 Weapon 8 | . . . . . . . . . . . 1 1 2 1 . 3 Highest Loss Streak 5 | . 1 . 1 . . 1 . . . . 2 2 5 2 . 2 To Critical Strikes 2 | . . . 1 . . . . . . . . . . . . 1 Average Slot Usage (%) 85 | . 99 100 98 100 83 99 92 99 100 71 76 75 71 70 73 70 Engine 3 | . 4 . . . . 9 . . 2 7 5 . 5 5 5 1 Core 6 | . 9 14 11 11 11 . 9 7 4 . 4 10 1 . . . Treads 13 | . 14 28 22 22 22 22 22 30 30 14 2 . 5 5 3 . Leg 1 | . . . . . . . . . . . 3 4 . . . . Wheel 3 | . 13 . 10 11 11 11 4 . . 2 . . . . . . Device 13 | . . . 11 11 11 11 9 14 22 23 19 22 16 11 11 14 Storage 7 | . 14 14 11 11 11 11 9 7 7 7 5 5 5 5 5 5 Protection 9 | . 13 13 11 11 11 11 11 7 7 . 7 5 9 10 10 5 Ballistic Gun 15 | . 17 13 17 22 5 21 26 23 17 10 14 5 4 . 4 8 Ballistic Cannon 5 | . 8 14 4 . . . . . 4 3 7 16 15 11 9 5 Naked Turns . | . . . . . . . . . . . . . . . . . Heaviest Build 120 | 12 28 28 29 27 27 28 73 68 74 62 96 99 120 120 113 113 Greatest Support 152 | 16 40 40 60 16 16 16 66 86 86 86 152 152 152 152 152 80 Greatest Overweight (x) 7 | . 2 . 1 1 1 2 4 . . 5 7 . . . 1 1 Average Overweight (x) . | . . . . 1 1 1 1 . . . . . . . . 1 Largest Inventory Capacity 20 | 8 10 10 10 10 10 10 20 20 20 20 20 20 20 20 20 20 Average Capacity 15 | 6 9 10 10 10 10 10 11 20 20 20 20 20 20 20 20 20 Most Carried 20 | 4 10 10 10 10 10 10 20 20 20 20 20 20 20 19 20 20 Average Carried 15 | 2 8 10 9 10 9 9 11 19 19 18 19 19 18 17 17 18 Final Capacity 20 | 8 10 10 10 10 10 10 20 20 20 20 20 20 20 20 20 20 Final Carried 20 | 4 10 10 10 10 10 10 20 20 20 20 20 19 19 17 20 17 Scrap Engine Consumption 100 | . . . . . . . . . . 23 34 16 5 1 10 11 Constructs Created 7 | . . . . . . . . . . 2 3 1 . . . 1 Constructs Modified 36 | . . . . . . . . . . 3 13 5 4 . 7 4 Class Distribution -------------------- 36% | Construct 20% | Scavenger-Mutant 20% | Mutant 8% | Scavenger-Skirmisher 7% | Skirmisher 5% | Scavenger-Tank Dominant Class ---------------- Mutant | -10/Materials Mutant | -10/Mines Scavenger-Mutant | -9/Materials Scavenger-Mutant | -9/Mines Scavenger-Mutant | -9/Exiles Scavenger-Mutant | -8/Mines Skirmisher | -8/Materials Scavenger-Skirmisher | -7/Factory Scavenger-Tank | -7/Storage Mutant | -7/Recycling Construct | -5/Factory Construct | -5/Extension Construct | -5/Cetus Construct | -5/Archives Construct | -5/Hub_04(d) Mutant | -4/Factory Resources | -11 -10 -10 -9 -9 -9 -8 -8 -7 -7 -7 -5 -5 -5 -5 -5 -4 ----------- Run | Jun Mat Min Mat Min Exi Min Mat Fac Sto Rec Fac Ext Cet Arc Hub Fac Matter Collected 10220 | 184 590 127 399 153 52 365 647 252 171 137 2108 1366 1713 224 280 1452 Remotely 2226 | . . . . . . . . . . . 511 449 539 . . 727 Salvage Created 8816 | . 534 55 644 472 . 456 826 252 219 141 1787 1104 886 137 288 1015 Parts 432 | . 31 10 45 22 . 25 66 13 11 7 61 51 38 1 24 27 Haulers Intercepted 10 | . 2 . 2 . . . 2 . . . 2 2 . . . . Recyclers Shooed 14 | . . 1 2 . . 1 . 2 . . 6 1 . . . 1 Parts Field Recycled . | . . . . . . . . . . . . . . . . . Retrieved Matter . | . . . . . . . . . . . . . . . . . Parts Self-Destructed . | . . . . . . . . . . . . . . . . . Prevented . | . . . . . . . . . . . . . . . . . Kills | -11 -10 -10 -9 -9 -9 -8 -8 -7 -7 -7 -5 -5 -5 -5 -5 -4 ------- Run | Jun Mat Min Mat Min Exi Min Mat Fac Sto Rec Fac Ext Cet Arc Hub Fac Combat Hostiles Destroyed 170 | . 9 5 12 10 . 10 17 4 3 . 18 21 27 4 7 23 Guns 68 | . 5 3 5 7 . 5 14 4 1 . 9 2 3 . . 10 Cannons 49 | . 2 2 3 . . . . . 2 . 6 10 13 4 3 4 AOE 53 | . 2 . 4 3 . 5 3 . . . 3 9 11 . 4 9 Classes Destroyed 19 | . 6 1 3 . . 1 1 1 . . 2 1 . . . 3 Worker 10 | . 1 . . . . 1 2 . 1 . 2 2 . . 1 . Builder 9 | . . . . . . . 2 . . . 1 3 . . 3 . Tunneler 5 | . . . 1 . . 2 1 . . . . 1 . . . . Hauler 10 | . 2 . 2 . . . 2 . . . 2 2 . . . . Recycler 21 | . 1 . 2 2 . 2 1 1 1 2 6 2 . . . 1 Mechanic 1 | . . . . . . . . . . . . . . . . 1 Operator 5 | . 1 . 1 . . . . 1 . . . 1 . 1 . . Watcher 14 | . 3 . 2 . . . 2 . . . 1 2 2 . 2 . Swarmer 46 | . . 5 6 5 . 3 9 . . . . 5 9 . 4 . Saboteur 1 | . . . . . . . . . . . . . . . . 1 Grunt 65 | . 9 . 5 4 . 6 4 2 2 . 5 8 8 . 2 10 Brawler 5 | . . . 1 1 . . . . . . . . 2 . . 1 Duelist 1 | . . . . . . . . . . . . . . . . 1 Sentry 16 | . . . 1 . . . 3 1 . . . 3 . 4 1 3 Specialist 2 | . . . . . . . . . . . 2 . . . . . Hunter 12 | . . . . . . 1 1 . . . 2 2 . . . 6 Programmer 12 | . . . . . . . . 1 1 . 8 1 . . . 1 Heavy 1 | . . . . . . . . . . . 1 . . . . . Behemoth 2 | . . . . . . . . . . . . 2 . . . . Cetus Guard 8 | . . . . . . . . . . . . . 8 . . . Best Kill Streak 13 | . 3 3 8 3 . 4 7 2 2 1 9 13 7 2 6 10 Combat Bots Only 9 | . 3 3 6 3 . 3 6 2 1 . 5 9 7 2 5 9 Max Kills in Single Turn 7 | . 2 1 5 2 . 4 3 1 2 1 2 7 3 1 2 4 Gunslinging 1 | . . . . 1 . 1 . . . . . . . . . . Exploded 5 | . 2 . 3 2 . 3 3 . . . 2 5 3 . 2 4 Melee . | . . . . . . . . . . . . . . . . . Uniques/NPCs Destroyed . | . . . . . . . . . . . . . . . . . Combat | -11 -10 -10 -9 -9 -9 -8 -8 -7 -7 -7 -5 -5 -5 -5 -5 -4 -------- Run | Jun Mat Min Mat Min Exi Min Mat Fac Sto Rec Fac Ext Cet Arc Hub Fac Damage Taken 12832 | . 478 77 366 72 . 487 515 264 96 . 2444 2011 2228 767 525 2502 Core 1111 | . 99 7 37 18 . 33 37 37 14 . 233 112 124 56 19 285 Absorbed by Shields 814 | . . . . . . . . . 12 . . . . . . 802 Ignored by Resistances 425 | . . . . . . . . . . . 210 . 94 121 . . Regen/Repaired (Parts) 2701 | . . . . . . . . . . . 819 599 187 . 725 371 Core Remaining (%) 77 | 100 . 57 . . . 78 93 . . 92 . . . . 45 . Volleys Fired 593 | . 74 8 32 16 . 32 44 16 10 10 101 64 64 36 18 68 Largest 4 | . 2 2 2 2 . 2 3 3 3 2 4 4 4 3 3 4 Hottest 210 | . 80 58 58 46 . 46 76 81 98 68 166 166 167 114 108 210 Shots Fired 1492 | . 146 16 62 31 . 58 114 44 24 12 263 234 187 72 34 195 Gun 818 | . 118 8 37 29 . 51 112 44 19 12 169 54 34 3 2 126 Cannon 633 | . 26 8 23 . . . . . 5 . 91 175 146 69 30 60 Launcher 41 | . 2 . 2 2 . 7 2 . . . 3 5 7 . 2 9 Special . | . . . . . . . . . . . . . . . . . Kinetic 1420 | . 138 16 60 29 . 51 112 44 24 12 260 229 180 72 32 161 Thermal 25 | . . . . . . . . . . . . . . . . 25 Explosive 41 | . 2 . 2 2 . 7 2 . . . 3 5 7 . 2 9 Electromagnetic 6 | . 6 . . . . . . . . . . . . . . . Robot Hit Streak 28 | . 16 4 28 7 . 10 11 12 10 4 20 11 23 17 11 14 Robot Miss Streak 5 | . 3 2 3 2 . 2 3 5 3 2 4 5 2 2 2 4 Penetration Max 1 | . . . . . . . 1 . . . . . 1 1 . . Secondary Targets 3 | . . . . 1 . 2 . . . . . . . . . . Max Gunslinging Chain 1 | . . . . 1 . 1 . . . . . . . . . . Shots Hit Robots 972 | . 100 9 41 18 . 46 64 29 18 4 156 137 131 55 23 141 Core Hits 528 | . 39 5 25 13 . 27 41 19 10 2 84 84 72 19 17 71 Critical Kills 1 | . . . . . . 1 . . . . . . . . . . Critical Parts Destroyed 4 | . . . . . . . 1 2 . . 1 . . . . . Critical Strikes 44 | . 2 . 1 . . 1 1 2 . . 6 15 8 1 1 6 Destroy 5 | . . . . . . 1 1 2 . . 1 . . . . . Blast 39 | . 2 . 1 . . . . . . . 5 15 8 1 1 6 Melee Attacks . | . . . . . . . . . . . . . . . . . Impact . | . . . . . . . . . . . . . . . . . Slashing . | . . . . . . . . . . . . . . . . . Piercing . | . . . . . . . . . . . . . . . . . Sneak Attacks . | . . . . . . . . . . . . . . . . . Combat Hostiles . | . . . . . . . . . . . . . . . . . Follow-up Attacks . | . . . . . . . . . . . . . . . . . Damage Inflicted 29931 | . 1260 198 976 490 . 1303 1336 519 425 70 4573 6255 4461 1435 1148 5482 Guns 9621 | . 735 108 421 270 . 609 1144 519 307 70 2002 1054 497 46 22 1817 Cannons 11807 | . 286 90 301 . . . . . 118 . 1634 3480 2755 1389 572 1182 Explosions 8503 | . 239 . 254 220 . 694 192 . . . 937 1721 1209 . 554 2483 Melee . | . . . . . . . . . . . . . . . . . Ramming . | . . . . . . . . . . . . . . . . . Kinetic 20966 | . 951 198 722 270 . 609 1144 519 425 70 3636 4534 3252 1435 594 2607 Thermal 1497 | . 28 . . . . . . . . . . . . . . 1469 Explosive 7164 | . 211 . 254 220 . 694 192 . . . 937 1721 1209 . 320 1406 Electromagnetic 304 | . 70 . . . . . . . . . . . . . 234 . Impact . | . . . . . . . . . . . . . . . . . Slashing . | . . . . . . . . . . . . . . . . . Piercing . | . . . . . . . . . . . . . . . . . Highest Corruption 11 | . . . 2 2 2 2 . . . . 11 1 3 3 3 1 Average Corruption 2 | . . . 2 2 2 2 . . . . 4 1 2 3 3 1 Corruption Purged 17 | . . . . . . . . . . . 17 . . . . . Corruption Blocked . | . . . . . . . . . . . . . . . . . Effects 119 | . . . 11 11 8 8 . . . . 40 5 12 6 16 2 Message Errors 30 | . . . 1 2 1 3 . . . . 12 . 5 . 6 . Matter Fused 24 | . . . 6 1 3 . . . . . 6 2 1 2 3 . Heat Flow Errors 14 | . . . . 5 1 1 . . . . 4 1 1 . 1 . Energy Discharges 12 | . . . 2 1 1 1 . . . . 3 . . 2 1 1 Parts Rejected 1 | . . . . . . . . . . . 1 . . . . . Parts Fused 2 | . . . 1 . . . . . . . . . . 1 . . Data Loss (minor) 13 | . . . . . 1 1 . . . . 4 1 2 1 2 1 Data Loss (major) 6 | . . . 1 1 . 1 . . . . . 1 2 . . . Misfires 9 | . . . . 1 . 1 . . . . 6 . . . 1 . Alerts 4 | . . . . . 1 . . . . . 1 . . . 2 . Weapon Failures 4 | . . . . . . . . . . . 3 . 1 . . . Overload Shots . | . . . . . . . . . . . . . . . . . Overflow Damage 645 | . . . 26 41 . 8 25 . 1 . 72 106 95 . 27 244 Projectiles 202 | . . . . . . . . . 1 . 72 103 20 . . 6 Explosions 443 | . . . 26 41 . 8 25 . . . . 3 75 . 27 238 Melee . | . . . . . . . . . . . . . . . . . Knockbacks 61 | . 5 . 5 . . . . . . . 25 11 3 5 3 4 Impact . | . . . . . . . . . . . . . . . . . Kinetic 59 | . 4 . 4 . . . . . . . 25 11 3 5 3 4 Secondary 2 | . 1 . 1 . . . . . . . . . . . . . Self-Inflicted Damage 149 | . . . . . . 11 . . . . . . . . 138 . Shots 3 | . . . . . . 1 . . . . . . . . 2 . Rammed . | . . . . . . . . . . . . . . . . . Targets Rammed . | . . . . . . . . . . . . . . . . . Kicked . | . . . . . . . . . . . . . . . . . Crushed . | . . . . . . . . . . . . . . . . . Highest Temperature 257 | . 126 48 . 205 171 257 2 7 59 . 194 178 199 194 184 199 Average Temperature 71 | . 26 18 . 86 96 129 1 4 25 . 44 20 101 98 71 105 Received Heat Transfer 2021 | . 270 9 51 24 . 207 126 78 28 . 145 279 309 135 99 261 Siege Activations . | . . . . . . . . . . . . . . . . . Robots Corrupted . | . . . . . . . . . . . . . . . . . Combat Hostiles . | . . . . . . . . . . . . . . . . . Parts Fried 6 | . 2 . . . . . . . . . . 2 . . 2 . Impact Corruptions . | . . . . . . . . . . . . . . . . . Robots Melted . | . . . . . . . . . . . . . . . . . Combat Hostiles . | . . . . . . . . . . . . . . . . . Parts Melted 1 | . . . . . . . . . . . . . . . . 1 Heat Transferred 1342 | . 50 . . . . . . . . . . . . . . 1292 Parts Sabotaged . | . . . . . . . . . . . . . . . . . Parts Stolen . | . . . . . . . . . . . . . . . . . Parts Stripped . | . . . . . . . . . . . . . . . . . Power Chain Reactions 1 | . 1 . . . . . . . . . . . . . . . Missiles Intercepted . | . . . . . . . . . . . . . . . . . Alert | -11 -10 -10 -9 -9 -9 -8 -8 -7 -7 -7 -5 -5 -5 -5 -5 -4 ------- Run | Jun Mat Min Mat Min Exi Min Mat Fac Sto Rec Fac Ext Cet Arc Hub Fac Peak Influence 1316 | . 199 135 308 308 . 137 294 170 153 69 194 550 712 418 776 1316 Initial 380 | . . . 14 25 . . 16 133 25 59 . 44 296 284 146 380 Average 152 | . 53 67 140 139 . 72 77 87 79 32 40 250 453 373 403 695 Maximum Alert Level 4 | . . . 1 1 . . 1 . . . . 2 3 2 3 4 Low Security (%) 77 | 100 100 100 74 77 . 100 92 100 100 100 100 45 . . 17 . Level 1 12 | . . . 25 22 . . 7 . . . . 42 43 56 44 23 Level 2 6 | . . . . . . . . . . . . 12 52 43 26 19 Level 3 2 | . . . . . . . . . . . . . 4 . 11 41 Level 4 . | . . . . . . . . . . . . . . . . 15 Level 5 . | . . . . . . . . . . . . . . . . . High Security . | . . . . . . . . . . . . . . . . . Max Security . | . . . . . . . . . . . . . . . . . Squads Dispatched 28 | . 2 . 1 1 . . 1 3 . . 8 3 . . 1 8 Investigation 2 | . 1 . . . . . . . . . . . . . . 1 Extermination 6 | . . . . . . . . 1 . . 4 . . . . 1 Reinforcement 13 | . 1 . 1 1 . . 1 1 . . 4 3 . . 1 . Assault 3 | . . . . . . . . . . . . . . . . 3 Garrison 4 | . . . . . . . . 1 . . . . . . . 3 Intercept . | . . . . . . . . . . . . . . . . . Searches Triggered . | . . . . . . . . . . . . . . . . . Construction Impeded 6 | . . . . 1 . . 1 . . . 1 3 . . . . Haulers Reinforced . | . . . . . . . . . . . . . . . . . Active Scanning Responses . | . . . . . . . . . . . . . . . . . Cargo Convoy Interrupts . | . . . . . . . . . . . . . . . . . Stealth | -11 -10 -10 -9 -9 -9 -8 -8 -7 -7 -7 -5 -5 -5 -5 -5 -4 --------- Run | Jun Mat Min Mat Min Exi Min Mat Fac Sto Rec Fac Ext Cet Arc Hub Fac Distress Signals 6 | . . . 1 . . . 1 . . . 1 . . . 1 2 Communications Jammed . | . . . . . . . . . . . . . . . . . Distress Signals . | . . . . . . . . . . . . . . . . . Times Spotted 235 | . 16 6 20 14 . 9 22 5 3 . 24 42 24 13 10 27 Peak Tracking Total 10 | . 3 2 6 3 . 3 4 2 1 . 5 10 6 2 5 7 Tactical Retreats 10 | . . . . 1 . . 3 . . . 1 . . 1 4 . Traps | -11 -10 -10 -9 -9 -9 -8 -8 -7 -7 -7 -5 -5 -5 -5 -5 -4 ------- Run | Jun Mat Min Mat Min Exi Min Mat Fac Sto Rec Fac Ext Cet Arc Hub Fac Traps Triggered 11 | . 1 . 1 . . . 1 . . . 4 2 . . . 2 Indirectly . | . . . . . . . . . . . . . . . . . Trap Hack Attempts . | . . . . . . . . . . . . . . . . . Triggered . | . . . . . . . . . . . . . . . . . Disarmed 1 | . . . . . . . . . . . . 1 . . . . Reprogrammed . | . . . . . . . . . . . . . . . . . Reused . | . . . . . . . . . . . . . . . . . Traps Extracted . | . . . . . . . . . . . . . . . . . Installed . | . . . . . . . . . . . . . . . . . Triggered . | . . . . . . . . . . . . . . . . . Machines | -11 -10 -10 -9 -9 -9 -8 -8 -7 -7 -7 -5 -5 -5 -5 -5 -4 ---------- Run | Jun Mat Min Mat Min Exi Min Mat Fac Sto Rec Fac Ext Cet Arc Hub Fac Machines Disabled 49 | . 1 . . . . . 1 . 1 . 1 1 . 1 15 28 Max in Single Turn 16 | . 1 . . . . . 1 . 1 . 1 1 . 1 8 16 Garrison Access 2 | . . . . . . . . . . . 1 . . . . 1 Network Hub 1 | . . . . . . . . . . . . . . . 1 . Machines Repaired . | . . . . . . . . . . . . . . . . . Machines Sabotaged . | . . . . . . . . . . . . . . . . . Overloaded Fab Kills . | . . . . . . . . . . . . . . . . . Hacking | -11 -10 -10 -9 -9 -9 -8 -8 -7 -7 -7 -5 -5 -5 -5 -5 -4 --------- Run | Jun Mat Min Mat Min Exi Min Mat Fac Sto Rec Fac Ext Cet Arc Hub Fac Machines Accessed 68 | . 6 2 3 . 2 . 11 4 3 12 11 5 2 1 4 2 Terminals 49 | . 6 1 3 . . . 9 4 2 5 6 5 2 . 4 2 Fabricators . | . . . . . . . . . . . . . . . . . Repair Stations 4 | . . . . . . . 1 . 1 . 2 . . . . . Recycling Units 9 | . . . . . . . 1 . . 7 1 . . . . . Scanalyzers . | . . . . . . . . . . . . . . . . . Garrison Access 2 | . . . . . . . . . . . 2 . . . . . Total Hacks 144 | . 23 3 9 . 2 . 19 11 9 16 27 7 3 1 8 6 Successful 68 | . 13 1 5 . 2 . 11 6 3 5 11 3 . 1 4 3 Failed 76 | . 10 2 4 . . . 8 5 6 11 16 4 3 . 4 3 Catastrophic 19 | . 3 . . . . . 3 . 1 2 5 1 1 . 2 1 Database Lockouts . | . . . . . . . . . . . . . . . . . Manual 80 | . 22 2 4 . 1 . 13 8 5 6 7 2 . . 8 2 Terminals 114 | . 23 2 9 . . . 16 11 6 6 17 7 3 . 8 6 Fabricators . | . . . . . . . . . . . . . . . . . Repair Stations 9 | . . . . . . . 2 . 3 . 4 . . . . . Recycling Units 13 | . . . . . . . 1 . . 10 2 . . . . . Scanalyzers . | . . . . . . . . . . . . . . . . . Garrison Access 4 | . . . . . . . . . . . 4 . . . . . Terminal Hacks 43 | . 10 1 4 . 2 . 6 5 1 . 5 3 . 1 3 2 Record 2 | . . . . . 1 . . . . . . . . 1 . . Part Schematic 2 | . 2 . . . . . . . . . . . . . . . Robot Analysis 2 | . 2 . . . . . . . . . . . . . . . Prototype ID Bank 1 | . . . 1 . . . . . . . . . . . . . Open Door 4 | . . 1 . . . . . . . . 1 2 . . . . Open DSF 1 | . . . . . . . . 1 . . . . . . . . Level Access Points 1 | . . . . . . . . . . . . . . . 1 . Branch Access Points 5 | . . . 1 . . . 1 1 1 . 1 . . . . . Terminal Index 3 | . . . . . . . . 1 . . 1 . . . . 1 Alert Level 1 | . 1 . . . . . . . . . . . . . . . Unreport Threat 3 | . 1 . 1 . . . . . . . 1 . . . . . Locate Traps 6 | . 2 . 1 . . . 1 1 . . . . . . 1 . Disarm Traps 1 | . . . . . . . . . . . . 1 . . . . Registered Components 1 | . . . . . . . . . . . . . . . . 1 Zone Layout 9 | . 2 . . . . . 4 1 . . 1 . . . 1 . Derelict Proto ID Bank 1 | . . . . . 1 . . . . . . . . . . . Fabricator Hacks . | . . . . . . . . . . . . . . . . . Repair Station Hacks 3 | . . . . . . . . . 1 . 2 . . . . . Scan Component 2 | . . . . . . . . . 1 . 1 . . . . . Repair 1 | . . . . . . . . . . . 1 . . . . . Recycling Unit Hacks 7 | . . . . . . . 1 . . 5 1 . . . . . Retrieve Components 7 | . . . . . . . 1 . . 5 1 . . . . . Scanalyzer . | . . . . . . . . . . . . . . . . . Garrison Access Hacks 1 | . . . . . . . . . . . 1 . . . . . Seal Access 1 | . . . . . . . . . . . 1 . . . . . Unauthorized Hacks 14 | . 3 . 1 . . . 4 1 1 . 2 . . . 1 1 Terminals 14 | . 3 . 1 . . . 4 1 1 . 2 . . . 1 1 Assimilate 3 | . 1 . . . . . 1 1 . . . . . . . . Botnet 11 | . 2 . 1 . . . 3 . 1 . 2 . . . 1 1 Fabricators . | . . . . . . . . . . . . . . . . . Repair Stations . | . . . . . . . . . . . . . . . . . Recycling Units . | . . . . . . . . . . . . . . . . . Scanalyzers . | . . . . . . . . . . . . . . . . . Garrison Access . | . . . . . . . . . . . . . . . . . Data Cores Recovered 1 | . . . . . . . . . . . . 1 . . . . Used . | . . . . . . . . . . . . . . . . . Hacking Detections 49 | . 4 1 3 . . . 9 3 3 8 8 3 1 . 4 2 Full Trace Events 1 | . . . . . . . . . . . . . . . . 1 Feedback Events . | . . . . . . . . . . . . . . . . . Feedback Blocked . | . . . . . . . . . . . . . . . . . Robot Schematics Acquired . | . . . . . . . . . . . . . . . . . Robots Built . | . . . . . . . . . . . . . . . . . Authchips . | . . . . . . . . . . . . . . . . . Time . | . . . . . . . . . . . . . . . . . Total Robot Build Rating . | . . . . . . . . . . . . . . . . . Part Schematics Acquired 2 | . 2 . . . . . . . . . . . . . . . Parts Built . | . . . . . . . . . . . . . . . . . Authchips . | . . . . . . . . . . . . . . . . . Time . | . . . . . . . . . . . . . . . . . Total Part Build Rating . | . . . . . . . . . . . . . . . . . Parts Repaired 1 | . . . . . . . . . . . 1 . . . . . Time 28 | . . . . . . . . . . . 28 . . . . . Parts Recycled . | . . . . . . . . . . . . . . . . . Recycled Matter . | . . . . . . . . . . . . . . . . . Retrieved Matter . | . . . . . . . . . . . . . . . . . Retrieved Components 16 | . . . . . . . 10 . . 3 3 . . . . . Parts Scanalyzed . | . . . . . . . . . . . . . . . . . Part Schematics Acquired . | . . . . . . . . . . . . . . . . . Parts Damaged . | . . . . . . . . . . . . . . . . . Bothacking | -11 -10 -10 -9 -9 -9 -8 -8 -7 -7 -7 -5 -5 -5 -5 -5 -4 ------------ Run | Jun Mat Min Mat Min Exi Min Mat Fac Sto Rec Fac Ext Cet Arc Hub Fac Used RIF Installer . | . . . . . . . . . . . . . . . . . Robots Hacked . | . . . . . . . . . . . . . . . . . Non-combat . | . . . . . . . . . . . . . . . . . Combat . | . . . . . . . . . . . . . . . . . Robot Hacks Applied . | . . . . . . . . . . . . . . . . . Relay Couplers Released 1 | . . . . . . . . . . . . . . . . 1 Machine Destruction 1 | . . . . . . . . . . . . . . . . 1 Fabnet Peak Effective % . | . . . . . . . . . . . . . . . . . Robots Rewired 3 | . . . . . . . . . . . . 3 . . . . Allies Hacked . | . . . . . . . . . . . . . . . . . Hacks Repelled . | . . . . . . . . . . . . . . . . . Allies | -11 -10 -10 -9 -9 -9 -8 -8 -7 -7 -7 -5 -5 -5 -5 -5 -4 -------- Run | Jun Mat Min Mat Min Exi Min Mat Fac Sto Rec Fac Ext Cet Arc Hub Fac Total Allies 12 | . 1 3 . 2 . . 1 . . . . 5 . . . . Largest Group 4 | . 1 3 2 2 . . 1 . . . . 4 . . . . Highest-Rated Group 257 | . 10 40 32 39 . . 10 . . . . 257 . . . . Highest-Rated Ally 159 | . 10 16 16 31 . . 10 . . . . 159 . . . . Total Orders 8 | . 2 2 . . . . 4 . . . . . . . . . STAY 3 | . 1 . . . . . 2 . . . . . . . . . FOLLOW 3 | . 1 . . . . . 2 . . . . . . . . . RETURN 2 | . . 2 . . . . . . . . . . . . . . Ally Attacks 89 | . . 25 6 6 . . . . . . . 52 . . . . Total Damage 1713 | . . 237 47 105 . . . . . . . 1324 . . . . Kills 10 | . . 2 1 . . . . . . . . 7 . . . . Allies Corrupted . | . . . . . . . . . . . . . . . . . Allies Melted . | . . . . . . . . . . . . . . . . . Intel | -11 -10 -10 -9 -9 -9 -8 -8 -7 -7 -7 -5 -5 -5 -5 -5 -4 ------- Run | Jun Mat Min Mat Min Exi Min Mat Fac Sto Rec Fac Ext Cet Arc Hub Fac Robot Analysis Total 2 | . 2 . . . . . . . . . . . . . . . Derelict Logs Recovered 3 | . . 1 . 2 . . . . . . . . . . . . Drone Launches 2 | . . 2 . . . . . . . . . . . . . . Drone Recoveries 2 | . . 2 . . . . . . . . . . . . . . Exploration | -11 -10 -10 -9 -9 -9 -8 -8 -7 -7 -7 -5 -5 -5 -5 -5 -4 ------------- Run | Jun Mat Min Mat Min Exi Min Mat Fac Sto Rec Fac Ext Cet Arc Hub Fac Turns Passed 15824 | 52 1216 666 656 596 607 836 2344 997 380 840 3087 1072 687 324 688 776 Spaces Moved 8621 | 38 794 366 388 445 522 598 1077 447 213 511 1574 529 353 133 368 265 Core 2 | 2 . . . . . . . . . . . . . . . . Treads 3097 | . 7 366 25 . . . 493 447 213 379 372 7 353 133 302 . Legs 1670 | . . . . . . . . . . . 1148 522 . . . . Wheels 3529 | 36 787 . 363 445 522 598 584 . . 132 54 . . . 8 . Hover 97 | . . . . . . . . . . . . . . . . 97 Flight 226 | . . . . . . . . . . . . . . . 58 168 Fastest Speed 50 | 50 100 160 115 115 115 110 110 148 148 110 121 121 121 121 121 163 Average Speed 133 | 97 108 160 118 115 115 114 145 148 148 144 147 121 121 121 131 175 Slowest Speed 240 | 100 160 160 240 115 115 115 225 148 148 225 229 121 121 121 182 182 Overloaded Moves . | . . . . . . . . . . . . . . . . . Propulsion Burnouts . | . . . . . . . . . . . . . . . . . Robots Hopped . | . . . . . . . . . . . . . . . . . Cave-ins Triggered . | . . . . . . . . . . . . . . . . . Exploration Rate (%) 58 | 4 99 74 38 86 89 92 67 11 39 97 39 59 73 79 32 8 Regions Visited 16 Branch Regions 10 Pre-discovered Areas 1 | . . . . . 1 . . . . . . . . . . . Known Exits Taken 6 | . . . 1 . . 1 . 1 1 . 1 . . . 1 . Unknown Exits Taken 10 | 1 1 1 . 1 1 . 1 . . 1 . 1 1 1 . . Scrap Searched 4 | . . 1 . 2 . 1 . . . . . . . . . . Spaces Dug 34 | . . . . . . . 14 . . 3 16 . 1 . . . Terrain Destroyed 729 | . 15 . 25 21 . 64 28 . 1 5 70 86 97 4 185 128 Melee . | . . . . . . . . . . . . . . . . . Projectile 150 | . . . . . . . 2 . 1 5 54 55 20 4 . 9 AOE 579 | . 15 . 25 21 . 64 26 . . . 16 31 77 . 185 119 Terrain Rammed . | . . . . . . . . . . . . . . . . . Walls Destroyed . | . . . . . . . . . . . . . . . . . Machines Disabled . | . . . . . . . . . . . . . . . . . Actions | -11 -10 -10 -9 -9 -9 -8 -8 -7 -7 -7 -5 -5 -5 -5 -5 -4 --------- Run | Jun Mat Min Mat Min Exi Min Mat Fac Sto Rec Fac Ext Cet Arc Hub Fac Total 11915 | 49 1027 433 524 499 531 696 1781 753 272 614 2207 820 496 231 544 438 Wait 2171 | 2 119 48 82 33 2 46 595 261 18 64 427 158 44 61 149 62 Move 8605 | 37 793 365 387 444 521 597 1076 446 212 510 1573 528 352 132 367 265 Hop . | . . . . . . . . . . . . . . . . . Pick Up 119 | 4 11 2 3 . 2 2 20 7 7 6 28 6 12 . 3 6 Fast Attach 59 | 6 6 2 3 . 2 2 6 3 5 2 11 . 4 . 3 4 Attach 49 | . 1 . 3 . . 1 2 1 . 3 16 2 10 2 . 8 Detach 16 | . 2 . . . . . . . . 5 5 . 2 . . 2 Swap 108 | . 7 3 7 4 . 9 14 7 4 . 21 11 2 . 1 18 Drop 149 | . 14 5 7 2 4 7 24 12 16 14 23 7 6 . 3 5 Fire 593 | . 74 8 32 16 . 32 44 16 10 10 101 64 64 36 18 68 Melee . | . . . . . . . . . . . . . . . . . Ram . | . . . . . . . . . . . . . . . . . Kick . | . . . . . . . . . . . . . . . . . Crush . | . . . . . . . . . . . . . . . . . Escape Stasis 2 | . . . . . . . . . . . 2 . . . . . Rewire 44 | . . . . . . . . . . . . 44 . . . . Trap . | . . . . . . . . . . . . . . . . . Miscellaneous . | . . . . . . . . . . . . . . . . . Route ------- -11/Junkyard -10/Materials (discovered 5 exits: *Mat x3 / *Min / [*Sub]) -10/Mines (discovered 3 exits: *Mat x2 / [*Sub]) -9/Materials (discovered 4 exits: *Mat x3 / *Min) -9/Mines (discovered 3 exits: *Mat x2 / *Exi) -9/Exiles -8/Mines -8/Materials -7/Factory (discovered 3 exits: *Sto / Low x2) -7/Storage -7/Recycling -5/Factory (discovered 5 exits: *Fac / Upp x2 / *Ext x2) -5/Extension (discovered 2 exits: *Fac / *Cet) -5/Cetus (discovered 2 exits: *Fac / *Arc) -5/Archives (discovered 2 exits: *Hub x2) -5/Hub_04(d) (discovered 4 exits: *Fac x4) -4/Factory History --------- Turn | Location | Event 9 | -11/Junkyard | Discovered new exit (range 16) 53 | -11/Junkyard | Entered Materials 175 | -10/Materials | Discovered new exit (range 16) 302 | -10/Materials | Build established: Mutant 532 | -10/Materials | Discovered new exit (range 15) 602 | -10/Materials | Discovered new exit (range 13) 773 | -10/Materials | Discovered new exit (range 10) 890 | -10/Materials | Discovered new exit (range 7) 1269 | -10/Materials | Entered Mines 1407 | -10/Mines | Found the Drone Emporium 1412 | -10/Mines | Learned location of 2 exits from Materials 1416 | -10/Mines | Found Prototype Device 1416 | -10/Mines | Identified Sensor Drone Bay 1480 | -10/Mines | Received a Rocket Launcher from a helpful Derelict 1543 | -10/Mines | Discovered new exit (range 4) 1843 | -10/Mines | Discovered new exit (range 11) 1864 | -10/Mines | Assisted by bots powering up and referring to "LRC-V3" 1916 | -10/Mines | Discovered new exit (range 12) 1935 | -10/Mines | Entered Materials 1935 | -9/Materials | Accompanied by 2 allies 1935 | -9/Materials | Evolved 2 slots: Propulsion x1, Utility x1 1936 | -9/Materials | Identified exit to Materials 2278 | -9/Materials | Discovered exit to Materials (range 4) 2425 | -9/Materials | Build established: Scavenger-Mutant 2469 | -9/Materials | Identified exit to Mines 2591 | -9/Materials | Entered Mines 2594 | -9/Mines | Learned location of 1 exit from Proximity Caves 2644 | -9/Mines | Learned Materials emergency access door positions 2709 | -9/Mines | Discovered exit to Materials (range 7) 2743 | -9/Mines | Discovered exit to Materials (range 7) 3155 | -9/Mines | Deemed a non-threat by the Exiles lab entrance 3155 | -9/Mines | Discovered new exit (range 5) 3187 | -9/Mines | Entered Exiles 3216 | -9/Exiles | Met 8R-AWN 3235 | -9/Exiles | Met EX-HEX 3276 | -9/Exiles | Met EX-BIN 3312 | -9/Exiles | Met EX-DEC 3317 | -9/Exiles | Learned location of Zion (-7) 3362 | -9/Exiles | Discovered new exit (range 14) 3463 | -9/Exiles | Visited The Gauntlet 3634 | -9/Exiles | Aligned with FarCom system 3635 | -9/Exiles | Given EX-Vault access code 3665 | -9/Exiles | Opened EX-Vault 3675 | -9/Exiles | Found Field Lobotomy Kit 3701 | -9/Exiles | Warned to stay clear of 0b10 Research branches 3794 | -9/Exiles | Left Exiles lab with Field Lobotomy Kit 3794 | -9/Exiles | Entered Mines 4566 | -8/Mines | Discovered exit to Materials (range 7) 4630 | -8/Mines | Entered Materials 4630 | -8/Materials | Evolved 2 slots: Utility x1, Weapon x1 4937 | -8/Materials | Build established: Scavenger-Tank 6196 | -8/Materials | Build established: Skirmisher 6741 | -8/Materials | Discovered new exit (range 16) 6974 | -8/Materials | Entered Factory 6974 | -7/Factory | Evolved 2 slots: Propulsion x1, Utility x1 7039 | -7/Factory | Identified exit to DSF 7193 | -7/Factory | Build established: Scavenger-Skirmisher 7409 | -7/Factory | Identified exit to Storage 7409 | -7/Factory | Identified exit to Lower Caves 7474 | -7/Factory | Found Prototype Launcher 7474 | -7/Factory | Identified Rocket Array 7532 | -7/Factory | Garrison activated, responded to threat 7971 | -7/Factory | Entered Storage 8152 | -7/Storage | Identified exit to Recycling 8345 | -7/Storage | Used back door to open Recycling access 8351 | -7/Storage | Entered Recycling 8352 | -7/Recycling | Found Scrap Engine 8855 | -7/Recycling | Build established: Mutant 9180 | -7/Recycling | Discovered new exit (range 5) 9191 | -7/Recycling | Entered Factory 9191 | -5/Factory | Evolved 4 slots: Power x1, Utility x2, Weapon x1 9805 | -5/Factory | Build established: Construct 10297 | -5/Factory | Discovered new exit (range 16) 10529 | -5/Factory | System corruption reached 10% 11361 | -5/Factory | Identified exit to Upper Caves 11361 | -5/Factory | Identified exit to Extension 12093 | -5/Factory | Repaired Enh. Gauss Cannon 12278 | -5/Factory | Entered Extension 12584 | -5/Extension | Rescued A7 12687 | -5/Extension | Rescued a captive Derelict 12827 | -5/Extension | Spotted B-75 Beast 12837 | -5/Extension | Spotted B-75 Beast 12859 | -5/Extension | Destroyed B-75 Beast 12898 | -5/Extension | Destroyed B-75 Beast 12917 | -5/Extension | Extracted ID and sensor layout for unrecognized location from A7's data core 13178 | -5/Extension | Disrupted transfer network 13241 | -5/Extension | Destroyed 9 combat bots 13293 | -5/Extension | Discovered new exit (range 16) 13294 | -5/Extension | Discovered new exit (range 15) 13343 | -5/Extension | Disrupted transfer network 13350 | -5/Extension | Entered Cetus 13386 | -5/Cetus | Spotted Cetus Guard 13387 | -5/Cetus | Destroyed Cetus Guard 13394 | -5/Cetus | Destroyed Cetus Guard 13404 | -5/Cetus | Destroyed Cetus Guard 13411 | -5/Cetus | Destroyed Cetus Guard 13748 | -5/Cetus | Discovered new exit (range 16) 13802 | -5/Cetus | Spotted Cetus Guard 13802 | -5/Cetus | Spotted Cetus Guard 13809 | -5/Cetus | Destroyed Cetus Guard 13810 | -5/Cetus | Spotted Cetus Guard 13827 | -5/Cetus | Destroyed Cetus Guard 13839 | -5/Cetus | Spotted Cetus Guard 13853 | -5/Cetus | Destroyed Cetus Guard 13868 | -5/Cetus | Destroyed Cetus Guard 13879 | -5/Cetus | Discovered new exit (range 16) 13880 | -5/Cetus | Lost 5 parts (1p3u1w) 13887 | -5/Cetus | Met Revision 17 13889 | -5/Cetus | Destroyed 7 combat bots 14037 | -5/Cetus | Entered Archives 14206 | -5/Archives | Core integrity fell below 50% 14263 | -5/Archives | Discovered new exit (range 14) 14275 | -5/Archives | Unable to access archive contents 14330 | -5/Archives | Discovered new exit (range 16) 14361 | -5/Archives | Entered Hub_04(d) 14394 | -5/Hub_04(d) | Identified exit to Factory 14971 | -5/Hub_04(d) | Network Hub disabled 15049 | -5/Hub_04(d) | Entered Factory 15049 | -4/Factory | Evolved 2 slots: Propulsion x1, Utility x1 15482 | -4/Factory | Destroyed 9 combat bots 15549 | -4/Factory | First assault squad dispatched 15825 | -4/Factory | Self-destructed Last Messages --------------- 15811_ Enh. Gauss Cannon destroyed. 15811_ K-01 Serf collects debris. 15812_ Slug penetrates H-77 Assassin. 15813_ K-01 Serf collects debris. 15813_ U-05 Engineer lays Concrete. 15815_ Centrium Medium Armor Plating destroyed. 15816_ K-01 Serf collects debris. 15817_ The unstable cave ceiling collapses. 15817_ Plasma Rifle crushed. 15817_ K-01 Serf collects debris. 15820_ U-05 Engineer builds a Wall. 15820_ Penetrated by Slug. 15820_ K-01 Serf collects debris. 15820_ Slug penetrates H-77 Assassin. 15820_ H-77 Assassin destroyed. 15822_ K-01 Serf collects debris. 15824_ Acquired 47 matter. 15824_ K-01 Serf collects debris. 15824_ U-05 Engineer builds a Door. 15825_ K-01 Serf collects debris. Map ----- +----------------------------------------------------+ | ????????????????# ?????????## " #???## | | ????????????????# ##########! "###??## | | ????????????????# #*# ###+ #"""###### | | ????????????????# ##### #### | | ????????????????# | | ????????????????# | | ????????????????# | | ????????????????###+## #### | | ?????????????????????# #### | | ?????????????=???????# ""## | | ?????????????????????# [ ## | | ???????????????? ????# * k ! ## | | ????????????????? """# = k "# | | ????????????????? """# "# | | ????????????????? # "## | | ?????????????? ? # " | | ????????????## ""## # " | | ?????????? "# " "" | | ????????? # " "" | | ??????? # k # "" | | ??????? # # "" | | ?????? # # | | ?????? # # | | ????? # #### | | ????? #u "" | | ????? + G @ "T"" | | ????#" " """"" | | ???? " [ ! | | ????#" * ! | | ??????""""" ## # !;;;;######+############# | | ?????? # # [ ; ####### | | ???????????? ; ????????? | | ????????????## ; ??????? | | ?????????????# ; #?????? | | ?????????????# " #?????? | | ?????????????# " #?????? | | ??????????#####" #?????? | | ??????????# " #?????? | | ??????????######! ! ; #?????? | | ???????????????#!!! ; #?????? | | ???????????????#!!% " #?????? | | ???????????????######"""""""""##############?????? | | | | | | | | | | | | | | | | | +----------------------------------------------------+ Best States ------------- Heat Dissipation 102 Coolant Potential 80 Energy Generation 42 Energy Capacity 516 Matter Stores 300 Matter Capacity 300 Sight Range 16 Terrain Scan Density 10 EM Shielding 3 Armor Coverage 600 Resistance: KI 30 Weapon Cycling 15 Phase Shifting 10 Evasion (%) 55 Targeting Accuracy 8 Recoil Reduction 10 Kinecelleration 30 Offensive Hacking 10 Defensive Hacking 24 Item Schematics ----------------- Hcp. Storage Unit | -10/Materials | Hacked Huge Storage Unit | -10/Materials | Hacked Robot Schematics ------------------ None Fabricated ------------ Nothing Alien Tech Used ----------------- None Achievements -------------- Left-hand Path Challenges ------------ None Game ------ Seed MakeshiftIonAnalyzer Manual? 0 Play Time 01:56:41 Cumulative 1245.9 hours Start 2023.11.26 @ 19:51:36 End 2023.11.26 @ 21:58:39 Sessions 1 Manual Loads 0 Difficulty Rogue Special Mode None Game No. 907 Rogue 867 Adventurer 40 Explorer 0 Win Type - Total 145 Types 71/7/42/2/1/4/15/2/1 Lore% 92 Gallery% 95 Achievement% 82 Wizard Run 0 Options --------- ASCII 0 Keyboard 0 Movement Numpad Keybinds 0 Fullscreen 0 Font 20/Terminus Map View 76x50 Tactical HUD 1 Map Filters NONE Filters NONE Steam 1 RUN: 4d0acf1b-b79f-4747-8c16-247c30475edb